[Event "Early-Titled-Tuesday-Blitz-September-12-2023"]
[Site "Chess.com"]
[Date "2023.09.12"]
[Round "7"]
[White "Aradhya2000"]
[Black "Mikedannnn"]
[Result "1/2-1/2"]
[WhiteElo "2694"]
[BlackElo "2561"]
[TimeControl "180+1"]
[EndTime "9:20:02 PDT"]
[Termination "Game drawn - insufficient material"]

1. d4 {[%clk 0:03:00.9]} 1... c5 {[%clk 0:02:58.1]} 2. d5 {[%clk 0:03:00]} 2...
g6 {[%clk 0:02:57.7]} 3. e4 {[%clk 0:02:59.5]} 3... Bg7 {[%clk 0:02:57.9]} 4.
Nf3 {[%clk 0:02:59.6]} 4... d6 {[%clk 0:02:58]} 5. Bb5+ {[%clk 0:02:57.6]} 5...
Bd7 {[%clk 0:02:57.1]} 6. a4 {[%clk 0:02:57]} 6... Nf6 {[%clk 0:02:56.8]} 7. Nc3
{[%clk 0:02:56.2]} 7... O-O {[%clk 0:02:56.6]} 8. O-O {[%clk 0:02:56.2]} 8...
Bxb5 {[%clk 0:02:56.6]} 9. axb5 {[%clk 0:02:55.8]} 9... Nbd7 {[%clk 0:02:57.3]}
10. h3 {[%clk 0:02:48.7]} 10... Ne8 {[%clk 0:02:56.9]} 11. Bg5 {[%clk 0:02:47]}
11... h6 {[%clk 0:02:44.8]} 12. Bf4 {[%clk 0:02:38.8]} 12... Nc7 {[%clk
0:02:44.6]} 13. Qd2 {[%clk 0:02:37.6]} 13... Kh7 {[%clk 0:02:34.7]} 14. Rfe1
{[%clk 0:02:36]} 14... Nb6 {[%clk 0:02:34.2]} 15. b3 {[%clk 0:02:21.5]} 15...
Qd7 {[%clk 0:02:30.4]} 16. Ra5 {[%clk 0:02:16.5]} 16... a6 {[%clk 0:02:24.2]}
17. bxa6 {[%clk 0:02:14.6]} 17... Rxa6 {[%clk 0:02:19.6]} 18. Rxa6 {[%clk
0:02:15]} 18... bxa6 {[%clk 0:02:13.1]} 19. e5 {[%clk 0:02:01]} 19... Nb5 {[%clk
0:01:17.7]} 20. e6 {[%clk 0:01:29.4]} 20... fxe6 {[%clk 0:01:16.4]} 21. Nxb5
{[%clk 0:01:29.5]} 21... Nxd5 {[%clk 0:01:07.5]} 22. Bg3 {[%clk 0:00:42.3]}
22... axb5 {[%clk 0:01:06.7]} 23. Qe2 {[%clk 0:00:35.6]} 23... e5 {[%clk
0:01:02.6]} 24. h4 {[%clk 0:00:35.8]} 24... Nf4 {[%clk 0:00:59.8]} 25. Qd2
{[%clk 0:00:35.8]} 25... b4 {[%clk 0:00:53.9]} 26. Nxe5 {[%clk 0:00:35.5]} 26...
Qf5 {[%clk 0:00:40.1]} 27. Bxf4 {[%clk 0:00:28.4]} 27... Qxf4 {[%clk 0:00:36.4]}
28. Qxf4 {[%clk 0:00:28.5]} 28... Rxf4 {[%clk 0:00:37.3]} 29. Nd3 {[%clk
0:00:28.2]} 29... Rf7 {[%clk 0:00:37]} 30. Re6 {[%clk 0:00:28.8]} 30... Bd4
{[%clk 0:00:35.3]} 31. g4 {[%clk 0:00:28.8]} 31... Kg7 {[%clk 0:00:34.9]} 32.
Kg2 {[%clk 0:00:29.3]} 32... g5 {[%clk 0:00:28.4]} 33. h5 {[%clk 0:00:24.1]}
33... Kf8 {[%clk 0:00:26.5]} 34. Rxh6 {[%clk 0:00:22.8]} 34... Ke8 {[%clk
0:00:15.3]} 35. Rg6 {[%clk 0:00:18.1]} 35... Bf6 {[%clk 0:00:15.4]} 36. f4
{[%clk 0:00:16.1]} 36... gxf4 {[%clk 0:00:14.3]} 37. Nxf4 {[%clk 0:00:17]} 37...
Bd4 {[%clk 0:00:14.7]} 38. Nd3 {[%clk 0:00:17]} 38... Rg7 {[%clk 0:00:12.3]} 39.
Rxg7 {[%clk 0:00:17]} 39... Bxg7 {[%clk 0:00:12.3]} 40. g5 {[%clk 0:00:17]}
40... Kf7 {[%clk 0:00:12.6]} 41. Kf3 {[%clk 0:00:17.1]} 41... e5 {[%clk
0:00:12.9]} 42. Kg4 {[%clk 0:00:13.5]} 42... e4 {[%clk 0:00:12.6]} 43. Nf4
{[%clk 0:00:12.7]} 43... Be5 {[%clk 0:00:12.8]} 44. Kf5 {[%clk 0:00:11.9]} 44...
e3 {[%clk 0:00:12.9]} 45. Ne2 {[%clk 0:00:11.7]} 45... Bd4 {[%clk 0:00:09.7]}
46. h6 {[%clk 0:00:10.4]} 46... d5 {[%clk 0:00:09.8]} 47. g6+ {[%clk 0:00:10.8]}
47... Kg8 {[%clk 0:00:09.6]} 48. Kf4 {[%clk 0:00:09]} 48... Bf6 {[%clk
0:00:08.8]} 49. Kf5 {[%clk 0:00:06.8]} 49... Bb2 {[%clk 0:00:06.9]} 50. Kf4
{[%clk 0:00:06.7]} 50... Bf6 {[%clk 0:00:06.3]} 51. Kf5 {[%clk 0:00:06.8]} 51...
Bb2 {[%clk 0:00:06.6]} 52. Ke6 {[%clk 0:00:07.2]} 52... d4 {[%clk 0:00:05.4]}
53. Kd5 {[%clk 0:00:07.4]} 53... Bc3 {[%clk 0:00:02.4]} 54. Kxc5 {[%clk
0:00:07.5]} 54... d3 {[%clk 0:00:02.5]} 55. cxd3 {[%clk 0:00:07.2]} 55... Bf6
{[%clk 0:00:02.3]} 56. Kxb4 {[%clk 0:00:06.8]} 56... Bg5 {[%clk 0:00:02.7]} 57.
h7+ {[%clk 0:00:07.4]} 57... Kg7 {[%clk 0:00:03.4]} 58. Kc4 {[%clk 0:00:07.8]}
58... Bf6 {[%clk 0:00:04]} 59. b4 {[%clk 0:00:08]} 59... Kxg6 {[%clk 0:00:04.7]}
60. b5 {[%clk 0:00:08.3]} 60... Kxh7 {[%clk 0:00:05.2]} 61. b6 {[%clk
0:00:08.8]} 61... Kg6 {[%clk 0:00:05.7]} 62. b7 {[%clk 0:00:09.3]} 62... Be5
{[%clk 0:00:06.1]} 63. d4 {[%clk 0:00:09.9]} 63... Bc7 {[%clk 0:00:06.1]} 64.
Kd5 {[%clk 0:00:10.4]} 64... Kf5 {[%clk 0:00:05.8]} 65. Kc6 {[%clk 0:00:10.5]}
65... Bh2 {[%clk 0:00:05.6]} 66. Kd7 {[%clk 0:00:10.1]} 66... Ke4 {[%clk
0:00:05.6]} 67. Kc8 {[%clk 0:00:10.1]} 67... Kd3 {[%clk 0:00:05.8]} 68. b8=Q
{[%clk 0:00:09.8]} 68... Bxb8 {[%clk 0:00:05.8]} 69. Kxb8 {[%clk 0:00:10.7]}
69... Kxe2 {[%clk 0:00:06.5]} 70. d5 {[%clk 0:00:11.4]} 70... Kf3 {[%clk
0:00:06.5]} 71. d6 {[%clk 0:00:12]} 71... e2 {[%clk 0:00:06.8]} 72. d7 {[%clk
0:00:12.7]} 72... e1=Q {[%clk 0:00:07.3]} 73. d8=Q {[%clk 0:00:13.4]} 73... Qb4+
{[%clk 0:00:07.5]} 74. Kc8 {[%clk 0:00:13.1]} 74... Qc4+ {[%clk 0:00:07.8]} 75.
Kb8 {[%clk 0:00:12.3]} 75... Qb3+ {[%clk 0:00:07.8]} 76. Kc8 {[%clk 0:00:12.3]}
76... Qc2+ {[%clk 0:00:08]} 77. Kb8 {[%clk 0:00:12.4]} 77... Qe4 {[%clk
0:00:08.5]} 78. Qf6+ {[%clk 0:00:11.7]} 78... Qf4+ {[%clk 0:00:08.2]} 79. Qxf4+
{[%clk 0:00:12.2]} 79... Kxf4 {[%clk 0:00:09.1]} 1/2-1/2

[Event "Early-Titled-Tuesday-Blitz-September-12-2023"]
[Site "Chess.com"]
[Date "2023.09.12"]
[Round "7"]
[White "TERMINATOR_PC"]
[Black "alexrustemov"]
[Result "1-0"]
[WhiteElo "2540"]
[BlackElo "2843"]
[TimeControl "180+1"]
[EndTime "9:20:09 PDT"]
[Termination "TERMINATOR_PC won on time"]

1. e4 {[%clk 0:02:58.8]} 1... e6 {[%clk 0:02:58.5]} 2. d4 {[%clk 0:02:58.7]}
2... d5 {[%clk 0:02:59.1]} 3. Nc3 {[%clk 0:02:59.4]} 3... dxe4 {[%clk
0:02:58.9]} 4. Nxe4 {[%clk 0:02:59.3]} 4... Bd7 {[%clk 0:02:59.4]} 5. Nf3 {[%clk
0:02:58.8]} 5... Bc6 {[%clk 0:02:59.9]} 6. Bd3 {[%clk 0:02:58.4]} 6... Nd7
{[%clk 0:03:00.3]} 7. O-O {[%clk 0:02:57.8]} 7... Ngf6 {[%clk 0:03:00.7]} 8.
Nxf6+ {[%clk 0:02:55.7]} 8... Qxf6 {[%clk 0:03:00]} 9. c3 {[%clk 0:02:53.2]}
9... Bxf3 {[%clk 0:02:59.5]} 10. Qxf3 {[%clk 0:02:53.8]} 10... Qxf3 {[%clk
0:02:59.3]} 11. gxf3 {[%clk 0:02:54.7]} 11... Be7 {[%clk 0:02:58]} 12. f4 {[%clk
0:02:52.9]} 12... g6 {[%clk 0:02:57.7]} 13. Be3 {[%clk 0:02:49.8]} 13... c6
{[%clk 0:02:57.8]} 14. Kg2 {[%clk 0:02:32.8]} 14... Nf6 {[%clk 0:02:58]} 15. Kf3
{[%clk 0:02:30.8]} 15... O-O {[%clk 0:02:52.2]} 16. Rad1 {[%clk 0:02:29.7]}
16... Rfd8 {[%clk 0:02:52.4]} 17. Rfe1 {[%clk 0:02:29.9]} 17... Rd7 {[%clk
0:02:51.6]} 18. Rg1 {[%clk 0:02:06.8]} 18... Rad8 {[%clk 0:02:50.5]} 19. f5
{[%clk 0:02:06.1]} 19... exf5 {[%clk 0:02:45.4]} 20. Bxf5 {[%clk 0:02:06.2]}
20... Rd5 {[%clk 0:02:44.1]} 21. Bc2 {[%clk 0:02:06.9]} 21... Rh5 {[%clk
0:02:43.2]} 22. Rg2 {[%clk 0:02:06.3]} 22... Nd5 {[%clk 0:02:38.6]} 23. Bc1
{[%clk 0:02:03.6]} 23... Bd6 {[%clk 0:02:35.1]} 24. Rh1 {[%clk 0:01:54.1]} 24...
Re8 {[%clk 0:02:21.1]} 25. a3 {[%clk 0:01:42]} 25... f5 {[%clk 0:02:03.4]} 26.
h3 {[%clk 0:01:30.9]} 26... Kg7 {[%clk 0:01:55]} 27. Bg5 {[%clk 0:01:15.8]}
27... h6 {[%clk 0:01:50.9]} 28. Bc1 {[%clk 0:01:14.2]} 28... Kf6 {[%clk
0:01:49.9]} 29. h4 {[%clk 0:01:11.8]} 29... b5 {[%clk 0:01:39.9]} 30. Rgg1
{[%clk 0:00:37.3]} 30... Kf7 {[%clk 0:01:36.5]} 31. Bd1 {[%clk 0:00:30.3]} 31...
Re4 {[%clk 0:01:30.3]} 32. Kg2 {[%clk 0:00:15.6]} 32... Rhxh4 {[%clk 0:01:29.1]}
33. Bf3 {[%clk 0:00:16.2]} 33... Rxh1 {[%clk 0:00:42.7]} 34. Rxh1 {[%clk
0:00:17.1]} 34... Re7 {[%clk 0:00:28.3]} 35. Bxh6 {[%clk 0:00:14.6]} 35... Kf6
{[%clk 0:00:24.8]} 36. Bd2 {[%clk 0:00:14.2]} 36... Kg7 {[%clk 0:00:13.4]} 37.
Bh6+ {[%clk 0:00:10.6]} 37... Kg8 {[%clk 0:00:12.2]} 38. Bg5 {[%clk 0:00:08.9]}
38... Rh7 {[%clk 0:00:12.1]} 39. Rxh7 {[%clk 0:00:08.5]} 39... Kxh7 {[%clk
0:00:13]} 40. Bd8 {[%clk 0:00:05.1]} 40... Kg7 {[%clk 0:00:13]} 41. Kf1 {[%clk
0:00:05.6]} 41... Kf7 {[%clk 0:00:13.3]} 42. Ke2 {[%clk 0:00:06]} 42... Ke6
{[%clk 0:00:13.7]} 43. Bg5 {[%clk 0:00:06.3]} 43... a5 {[%clk 0:00:13.6]} 44.
Kd3 {[%clk 0:00:06.3]} 44... a4 {[%clk 0:00:13.7]} 45. c4 {[%clk 0:00:06.8]}
45... bxc4+ {[%clk 0:00:10]} 46. Kxc4 {[%clk 0:00:07.7]} 46... Nb6+ {[%clk
0:00:09.2]} 47. Kd3 {[%clk 0:00:06.9]} 47... Kd7 {[%clk 0:00:09.6]} 48. Bd1
{[%clk 0:00:04]} 48... Be7 {[%clk 0:00:05.9]} 49. Bd2 {[%clk 0:00:03.3]} 49...
g5 {[%clk 0:00:05.4]} 50. Ba5 {[%clk 0:00:03.2]} 50... Bd8 {[%clk 0:00:04.9]}
51. Bxb6 {[%clk 0:00:03.1]} 51... Bxb6 {[%clk 0:00:05.6]} 52. Bxa4 {[%clk
0:00:03.3]} 52... Kd6 {[%clk 0:00:06.2]} 53. Kc4 {[%clk 0:00:03.5]} 53... g4
{[%clk 0:00:06.5]} 54. Bc2 {[%clk 0:00:03.8]} 54... f4 {[%clk 0:00:06.8]} 55.
Bf5 {[%clk 0:00:04.3]} 55... g3 {[%clk 0:00:06.6]} 56. fxg3 {[%clk 0:00:05]}
56... fxg3 {[%clk 0:00:07.5]} 57. Be4 {[%clk 0:00:05.1]} 57... c5 {[%clk
0:00:06.5]} 58. dxc5+ {[%clk 0:00:04.7]} 58... Bxc5 {[%clk 0:00:07]} 59. b4
{[%clk 0:00:05.4]} 59... Be3 {[%clk 0:00:07.1]} 60. Kb5 {[%clk 0:00:05.6]} 60...
Bd2 {[%clk 0:00:06.2]} 61. a4 {[%clk 0:00:05]} 61... Kc7 {[%clk 0:00:06.5]} 62.
Bg2 {[%clk 0:00:04.5]} 62... Kb8 {[%clk 0:00:06.6]} 63. Kc5 {[%clk 0:00:03.6]}
63... Ka7 {[%clk 0:00:06.6]} 64. a5 {[%clk 0:00:02.5]} 64... Be3+ {[%clk
0:00:06.9]} 65. Kb5 {[%clk 0:00:02.2]} 65... Bd2 {[%clk 0:00:07.6]} 66. Ka4
{[%clk 0:00:02]} 66... Be1 {[%clk 0:00:05]} 67. Kb3 {[%clk 0:00:02.5]} 67... Bd2
{[%clk 0:00:04.8]} 68. Kc4 {[%clk 0:00:03]} 68... Be1 {[%clk 0:00:05]} 69. Kc5
{[%clk 0:00:02.4]} 69... Bf2+ {[%clk 0:00:04]} 70. Kb5 {[%clk 0:00:02.8]} 70...
Be1 {[%clk 0:00:04.9]} 71. Ka4 {[%clk 0:00:03.4]} 71... Bd2 {[%clk 0:00:05.2]}
72. b5 {[%clk 0:00:04.1]} 72... Be3 {[%clk 0:00:04.6]} 73. Bf1 {[%clk
0:00:04.2]} 73... Bf2 {[%clk 0:00:04.5]} 74. Kb4 {[%clk 0:00:03.8]} 74... Be1+
{[%clk 0:00:04.1]} 75. Ka4 {[%clk 0:00:04.5]} 75... Bf2 {[%clk 0:00:04.8]} 76.
Kb3 {[%clk 0:00:04.3]} 76... Be1 {[%clk 0:00:03.1]} 77. b6+ {[%clk 0:00:04.4]}
77... Kb7 {[%clk 0:00:03.7]} 78. Ka4 {[%clk 0:00:04.4]} 78... Kc6 {[%clk
0:00:01.6]} 79. Bg2+ {[%clk 0:00:04.7]} 1-0

[Event "Early-Titled-Tuesday-Blitz-September-12-2023"]
[Site "Chess.com"]
[Date "2023.09.12"]
[Round "7"]
[White "TigrVShlyape"]
[Black "splendidkid"]
[Result "1/2-1/2"]
[WhiteElo "2944"]
[BlackElo "2774"]
[TimeControl "180+1"]
[EndTime "9:20:19 PDT"]
[Termination "Game drawn - insufficient material"]

1. d4 {[%clk 0:03:00.9]} 1... Nf6 {[%clk 0:02:57.9]} 2. Bf4 {[%clk 0:03:00.2]}
2... g6 {[%clk 0:02:57.8]} 3. Nf3 {[%clk 0:02:59.2]} 3... Bg7 {[%clk 0:02:58.4]}
4. c3 {[%clk 0:02:59]} 4... O-O {[%clk 0:02:58.9]} 5. h3 {[%clk 0:02:58.5]} 5...
d6 {[%clk 0:02:59]} 6. e3 {[%clk 0:02:58.4]} 6... b6 {[%clk 0:02:59.4]} 7. Nbd2
{[%clk 0:02:57.7]} 7... Bb7 {[%clk 0:03:00.1]} 8. Bc4 {[%clk 0:02:54.2]} 8...
Nbd7 {[%clk 0:03:00.4]} 9. O-O {[%clk 0:02:53.8]} 9... a6 {[%clk 0:02:55.5]} 10.
a4 {[%clk 0:02:53.1]} 10... c5 {[%clk 0:02:42.3]} 11. Re1 {[%clk 0:02:46.5]}
11... Qc7 {[%clk 0:02:23.7]} 12. Bd3 {[%clk 0:02:43.1]} 12... Rfe8 {[%clk
0:02:13.5]} 13. e4 {[%clk 0:02:42.8]} 13... Nh5 {[%clk 0:02:07.2]} 14. Bh2
{[%clk 0:02:42]} 14... e5 {[%clk 0:02:05.4]} 15. dxe5 {[%clk 0:02:38.1]} 15...
Nxe5 {[%clk 0:01:59.4]} 16. Bxe5 {[%clk 0:02:25.1]} 16... Bxe5 {[%clk
0:01:49.1]} 17. Nc4 {[%clk 0:02:11.8]} 17... Bg7 {[%clk 0:01:46.5]} 18. Qb3
{[%clk 0:01:39.4]} 18... Nf4 {[%clk 0:01:45.6]} 19. Bf1 {[%clk 0:01:33.2]} 19...
Bxe4 {[%clk 0:00:50.8]} 20. Qxb6 {[%clk 0:01:28.4]} 20... Qxb6 {[%clk 0:00:50]}
21. Nxb6 {[%clk 0:01:28]} 21... Rab8 {[%clk 0:00:49]} 22. a5 {[%clk 0:01:27.8]}
22... Bb7 {[%clk 0:00:36.8]} 23. Nd2 {[%clk 0:01:24.2]} 23... d5 {[%clk
0:00:19.5]} 24. g3 {[%clk 0:01:23.9]} 24... Ne6 {[%clk 0:00:17.4]} 25. Bg2
{[%clk 0:01:23.6]} 25... Red8 {[%clk 0:00:18.1]} 26. Rad1 {[%clk 0:01:17.1]}
26... h5 {[%clk 0:00:13.7]} 27. h4 {[%clk 0:01:12.9]} 27... d4 {[%clk
0:00:13.7]} 28. Bxb7 {[%clk 0:01:11.9]} 28... Rxb7 {[%clk 0:00:14.6]} 29. Ndc4
{[%clk 0:01:06.8]} 29... Rc7 {[%clk 0:00:14.3]} 30. Rd3 {[%clk 0:01:02]} 30...
Kh7 {[%clk 0:00:11.9]} 31. Red1 {[%clk 0:01:01.1]} 31... Bf6 {[%clk 0:00:11.1]}
32. Kg2 {[%clk 0:01:01.3]} 32... Kg7 {[%clk 0:00:11.4]} 33. Na4 {[%clk
0:00:58.8]} 33... Rb8 {[%clk 0:00:11]} 34. Nab6 {[%clk 0:00:58.2]} 34... Re8
{[%clk 0:00:10.8]} 35. Rf3 {[%clk 0:00:56.7]} 35... Rc6 {[%clk 0:00:09.5]} 36.
Nd5 {[%clk 0:00:54.7]} 36... Nc7 {[%clk 0:00:04.3]} 37. Nxf6 {[%clk 0:00:52.7]}
37... Rxf6 {[%clk 0:00:05]} 38. Rxf6 {[%clk 0:00:52.3]} 38... Kxf6 {[%clk
0:00:05.9]} 39. cxd4 {[%clk 0:00:50.3]} 39... cxd4 {[%clk 0:00:06.8]} 40. Rxd4
{[%clk 0:00:49.8]} 40... Nb5 {[%clk 0:00:07.5]} 41. Rd5 {[%clk 0:00:48.5]} 41...
Re2 {[%clk 0:00:06.1]} 42. b3 {[%clk 0:00:47.5]} 42... Ra2 {[%clk 0:00:05.8]}
43. Rc5 {[%clk 0:00:42.7]} 43... Kg7 {[%clk 0:00:04.1]} 44. Rc6 {[%clk
0:00:42.2]} 44... Nd4 {[%clk 0:00:04.5]} 45. Rxa6 {[%clk 0:00:41]} 45... Nxb3
{[%clk 0:00:05.2]} 46. Ra7 {[%clk 0:00:40.3]} 46... Nc5 {[%clk 0:00:02]} 47. Nd6
{[%clk 0:00:37.2]} 47... Kf6 {[%clk 0:00:02.6]} 48. Nxf7 {[%clk 0:00:32]} 48...
Nd3 {[%clk 0:00:02.9]} 49. Ng5 {[%clk 0:00:31.8]} 49... Rxf2+ {[%clk 0:00:02.8]}
50. Kg1 {[%clk 0:00:31.9]} 50... Ra2 {[%clk 0:00:03.7]} 51. a6 {[%clk
0:00:30.7]} 51... Kf5 {[%clk 0:00:03.6]} 52. Rd7 {[%clk 0:00:28.1]} 52... Ne5
{[%clk 0:00:02.6]} 53. Rd5 {[%clk 0:00:26.6]} 53... Rxa6 {[%clk 0:00:02.5]} 54.
Kg2 {[%clk 0:00:23.1]} 54... Ra2+ {[%clk 0:00:02.6]} 55. Kh3 {[%clk 0:00:22.1]}
55... Kf6 {[%clk 0:00:03.3]} 56. Rd6+ {[%clk 0:00:20.8]} 56... Kf5 {[%clk
0:00:03.6]} 57. Rd5 {[%clk 0:00:20.6]} 57... Kf6 {[%clk 0:00:03.9]} 58. Ne4+
{[%clk 0:00:18.8]} 58... Ke6 {[%clk 0:00:03.7]} 59. Rd2 {[%clk 0:00:18.4]} 59...
Rxd2 {[%clk 0:00:02.5]} 60. Nxd2 {[%clk 0:00:18.6]} 60... Kf5 {[%clk 0:00:03.2]}
61. Kg2 {[%clk 0:00:18.2]} 61... Ng4 {[%clk 0:00:03.6]} 62. Kf3 {[%clk
0:00:17.8]} 62... Ne5+ {[%clk 0:00:03.6]} 63. Kf2 {[%clk 0:00:17.3]} 63... Ng4+
{[%clk 0:00:04.1]} 64. Ke2 {[%clk 0:00:17.7]} 64... Nf6 {[%clk 0:00:03.7]} 65.
Kf3 {[%clk 0:00:17.8]} 65... Ng4 {[%clk 0:00:03.8]} 66. Nc4 {[%clk 0:00:18.1]}
66... g5 {[%clk 0:00:02.9]} 67. hxg5 {[%clk 0:00:17.7]} 67... Kxg5 {[%clk
0:00:03.3]} 68. Nd6 {[%clk 0:00:17.5]} 68... Nh2+ {[%clk 0:00:03.2]} 69. Kg2
{[%clk 0:00:17.5]} 69... Ng4 {[%clk 0:00:04.1]} 70. Ne4+ {[%clk 0:00:17.2]}
70... Kf5 {[%clk 0:00:04.4]} 71. Nd2 {[%clk 0:00:17.3]} 71... Ne3+ {[%clk
0:00:04]} 72. Kf3 {[%clk 0:00:17.2]} 72... Ng4 {[%clk 0:00:04.9]} 73. Nc4 {[%clk
0:00:17.1]} 73... Nh2+ {[%clk 0:00:04.8]} 74. Kg2 {[%clk 0:00:17.5]} 74... Ng4
{[%clk 0:00:05.7]} 75. Kh3 {[%clk 0:00:17.5]} 75... Kg5 {[%clk 0:00:05.9]} 76.
Nd2 {[%clk 0:00:17.3]} 76... Nf2+ {[%clk 0:00:05.5]} 77. Kg2 {[%clk 0:00:17.6]}
77... Ng4 {[%clk 0:00:06.4]} 78. Kh3 {[%clk 0:00:18]} 78... Nf2+ {[%clk
0:00:06.3]} 79. Kg2 {[%clk 0:00:18.4]} 79... Nd3 {[%clk 0:00:07.2]} 80. Kh3
{[%clk 0:00:18.5]} 80... Kg6 {[%clk 0:00:06.9]} 81. Kh4 {[%clk 0:00:16.8]} 81...
Ne5 {[%clk 0:00:06.2]} 82. Kh3 {[%clk 0:00:16.5]} 82... Kf5 {[%clk 0:00:06]} 83.
Kh4 {[%clk 0:00:16.1]} 83... Kg6 {[%clk 0:00:06.4]} 84. Kh3 {[%clk 0:00:16.6]}
84... Kg5 {[%clk 0:00:06.9]} 85. Ne4+ {[%clk 0:00:15.9]} 85... Kf5 {[%clk
0:00:07.5]} 86. Nf2 {[%clk 0:00:15.9]} 86... Ng6 {[%clk 0:00:06.3]} 87. g4+
{[%clk 0:00:15.5]} 87... Kg5 {[%clk 0:00:05.6]} 88. Ne4+ {[%clk 0:00:14.4]}
88... Kh6 {[%clk 0:00:04.3]} 89. g5+ {[%clk 0:00:14.9]} 89... Kg7 {[%clk
0:00:04.7]} 90. Nf6 {[%clk 0:00:15.2]} 90... Nf4+ {[%clk 0:00:01.5]} 91. Kh4
{[%clk 0:00:15.3]} 91... Ne6 {[%clk 0:00:02.4]} 92. Nxh5+ {[%clk 0:00:14.4]}
92... Kg6 {[%clk 0:00:03]} 93. Kg4 {[%clk 0:00:14.9]} 93... Nxg5 {[%clk
0:00:03.6]} 1/2-1/2

[Event "Early-Titled-Tuesday-Blitz-September-12-2023"]
[Site "Chess.com"]
[Date "2023.09.12"]
[Round "8"]
[White "Sleepless_Knightmare"]
[Black "AliKa2810"]
[Result "0-1"]
[WhiteElo "2418"]
[BlackElo "2566"]
[TimeControl "180+1"]
[EndTime "9:24:42 PDT"]
[Termination "AliKa2810 won by resignation"]

1. e4 {[%clk 0:02:44.4]} 1... e6 {[%clk 0:02:59.4]} 2. d4 {[%clk 0:02:43.7]}
2... d5 {[%clk 0:03:00.1]} 3. Nc3 {[%clk 0:02:43.6]} 3... Nf6 {[%clk 0:02:52.6]}
4. e5 {[%clk 0:02:43.1]} 4... Nfd7 {[%clk 0:02:52.7]} 5. f4 {[%clk 0:02:42.7]}
5... c5 {[%clk 0:02:53.4]} 6. Nf3 {[%clk 0:02:43.1]} 6... Nc6 {[%clk 0:02:53.9]}
7. Be3 {[%clk 0:02:42.3]} 7... b6 {[%clk 0:02:49.2]} 8. Qd2 {[%clk 0:02:41.9]}
8... Bb7 {[%clk 0:02:47.2]} 9. h4 {[%clk 0:02:39.5]} 9... Be7 {[%clk 0:02:42.8]}
10. h5 {[%clk 0:02:35.3]} 10... h6 {[%clk 0:02:42.8]} 11. g4 {[%clk 0:02:32.6]}
11... cxd4 {[%clk 0:02:32.9]} 12. Bxd4 {[%clk 0:02:29.1]} 12... Nc5 {[%clk
0:02:32]} 13. Bd3 {[%clk 0:02:23.9]} 13... Rc8 {[%clk 0:02:27.2]} 14. O-O {[%clk
0:02:13]} 14... Ne4 {[%clk 0:02:13.6]} 15. Nxe4 {[%clk 0:01:59.3]} 15... dxe4
{[%clk 0:02:14.5]} 16. Bxe4 {[%clk 0:01:59.4]} 16... Nxd4 {[%clk 0:02:13.2]} 17.
Nxd4 {[%clk 0:01:39.5]} 17... Bxe4 {[%clk 0:02:11.6]} 18. f5 {[%clk 0:01:38.4]}
18... Rxc2 {[%clk 0:02:05.4]} 0-1

[Event "Early-Titled-Tuesday-Blitz-September-12-2023"]
[Site "Chess.com"]
[Date "2023.09.12"]
[Round "8"]
[White "RobertoJBM"]
[Black "ozates"]
[Result "1/2-1/2"]
[WhiteElo "2802"]
[BlackElo "2563"]
[TimeControl "180+1"]
[EndTime "9:25:18 PDT"]
[Termination "Game drawn by repetition"]

1. d4 {[%clk 0:02:59.9]} 1... Nf6 {[%clk 0:02:59.1]} 2. c4 {[%clk 0:02:59]} 2...
e6 {[%clk 0:02:59.6]} 3. Nf3 {[%clk 0:02:58.5]} 3... d5 {[%clk 0:03:00.2]} 4.
Nc3 {[%clk 0:02:58.2]} 4... c5 {[%clk 0:03:00.7]} 5. cxd5 {[%clk 0:02:57.8]}
5... Nxd5 {[%clk 0:03:01.6]} 6. e4 {[%clk 0:02:57.6]} 6... Nxc3 {[%clk
0:03:02.2]} 7. bxc3 {[%clk 0:02:58.5]} 7... cxd4 {[%clk 0:03:03]} 8. cxd4 {[%clk
0:02:58.7]} 8... Bb4+ {[%clk 0:03:03.3]} 9. Bd2 {[%clk 0:02:59.2]} 9... Bxd2+
{[%clk 0:03:04]} 10. Qxd2 {[%clk 0:03:00.1]} 10... O-O {[%clk 0:03:04.7]} 11.
Bc4 {[%clk 0:03:00.3]} 11... Nd7 {[%clk 0:03:05.6]} 12. O-O {[%clk 0:03:00.2]}
12... b6 {[%clk 0:03:06.1]} 13. Rfe1 {[%clk 0:03:00.5]} 13... Bb7 {[%clk
0:03:05.8]} 14. Rad1 {[%clk 0:03:01]} 14... Qe7 {[%clk 0:03:04.1]} 15. d5 {[%clk
0:03:00.8]} 15... exd5 {[%clk 0:03:02.1]} 16. exd5 {[%clk 0:02:55.6]} 16... Qf6
{[%clk 0:03:02]} 17. Qd4 {[%clk 0:02:46.6]} 17... Rac8 {[%clk 0:03:00.6]} 18.
Bb5 {[%clk 0:02:41.7]} 18... Rfd8 {[%clk 0:02:55.3]} 19. Bxd7 {[%clk 0:02:27.8]}
19... Rxd7 {[%clk 0:02:55.3]} 20. Qxf6 {[%clk 0:02:24.7]} 20... gxf6 {[%clk
0:02:55.2]} 21. d6 {[%clk 0:02:12.4]} 21... Rcd8 {[%clk 0:02:49.2]} 22. Nh4
{[%clk 0:02:03]} 22... h5 {[%clk 0:02:34.1]} 23. Nf5 {[%clk 0:02:01.5]} 23...
Kh7 {[%clk 0:02:34.3]} 24. Re7 {[%clk 0:01:41.2]} 24... Kg6 {[%clk 0:02:34]} 25.
Rxd7 {[%clk 0:01:41]} 25... Rxd7 {[%clk 0:02:34.1]} 26. Ne7+ {[%clk 0:01:41.2]}
26... Kh7 {[%clk 0:02:28.6]} 27. f4 {[%clk 0:01:38.8]} 27... Be4 {[%clk
0:02:26.3]} 28. Kf2 {[%clk 0:01:33.5]} 28... f5 {[%clk 0:02:21.5]} 29. g3 {[%clk
0:01:28.9]} 29... Kg7 {[%clk 0:02:21.7]} 30. Ke3 {[%clk 0:01:22.4]} 30... Kf6
{[%clk 0:02:21.8]} 31. Nd5+ {[%clk 0:01:13.2]} 31... Bxd5 {[%clk 0:02:17.8]} 32.
Rxd5 {[%clk 0:01:14.1]} 32... Ke6 {[%clk 0:02:18.7]} 33. Re5+ {[%clk 0:01:14.2]}
33... Kf6 {[%clk 0:02:19.3]} 34. Rd5 {[%clk 0:01:13.1]} 34... Ke6 {[%clk
0:02:19.7]} 35. Re5+ {[%clk 0:01:13.3]} 35... Kf6 {[%clk 0:02:19.5]} 36. Rd5
{[%clk 0:01:13.6]} 1/2-1/2